[Event "*** SCC Grand Prix: Titled Tuesday Blitz"]
[Site "Chess.com"]
[Date "2020.09.08"]
[Round "1"]
[White "Martins-BR"]
[Black "GregShahade"]
[Result "0-1"]
[WhiteElo "2267"]
[BlackElo "2593"]
[TimeControl "180+1"]
[EndTime "10:08:06 PDT"]
[Termination "GregShahade won on time"]

1. e4 {[%clk 0:03:00.9]} 1... e5 {[%clk 0:02:58.7]} 2. Nf3 {[%clk 0:03:00]} 2...
Nc6 {[%clk 0:02:59.1]} 3. d4 {[%clk 0:02:59.3]} 3... exd4 {[%clk 0:02:59.3]} 4.
Nxd4 {[%clk 0:02:58]} 4... Nf6 {[%clk 0:02:59.6]} 5. Nc3 {[%clk 0:02:56.9]} 5...
Bb4 {[%clk 0:02:59]} 6. Nxc6 {[%clk 0:02:56.3]} 6... bxc6 {[%clk 0:02:57.9]} 7.
Bd3 {[%clk 0:02:56]} 7... d5 {[%clk 0:02:58.1]} 8. exd5 {[%clk 0:02:56.9]} 8...
O-O {[%clk 0:02:57.4]} 9. O-O {[%clk 0:02:56.7]} 9... Bg4 {[%clk 0:02:57.3]} 10.
f3 {[%clk 0:02:53.5]} 10... Bh5 {[%clk 0:02:57.7]} 11. dxc6 {[%clk 0:02:49.1]}
11... Qd4+ {[%clk 0:02:57.3]} 12. Kh1 {[%clk 0:02:47.1]} 12... Bxc3 {[%clk
0:02:57.8]} 13. bxc3 {[%clk 0:02:47]} 13... Qxc3 {[%clk 0:02:58.5]} 14. Rb1
{[%clk 0:02:41.7]} 14... Qxc6 {[%clk 0:02:40.7]} 15. Bb2 {[%clk 0:02:39.9]}
15... Bg6 {[%clk 0:02:39.5]} 16. Bxg6 {[%clk 0:02:33.8]} 16... hxg6 {[%clk
0:02:39.3]} 17. Qd3 {[%clk 0:02:24.1]} 17... Rad8 {[%clk 0:02:30.3]} 18. Qc3
{[%clk 0:01:24.9]} 18... Qxc3 {[%clk 0:02:29.6]} 19. Bxc3 {[%clk 0:01:24.1]}
19... Nd5 {[%clk 0:02:30.1]} 20. Bd2 {[%clk 0:01:19.4]} 20... Nb6 {[%clk
0:02:24.9]} 21. Bb4 {[%clk 0:01:15.5]} 21... Rfe8 {[%clk 0:02:23.5]} 22. Rfe1
{[%clk 0:01:15.5]} 22... f6 {[%clk 0:01:51.1]} 23. Kg1 {[%clk 0:01:12.3]} 23...
Kf7 {[%clk 0:01:50.2]} 24. Kf2 {[%clk 0:01:11.6]} 24... Rd7 {[%clk 0:01:25]} 25.
Rxe8 {[%clk 0:01:07.9]} 25... Kxe8 {[%clk 0:01:25.9]} 26. Rb3 {[%clk 0:00:57.9]}
26... Kf7 {[%clk 0:01:15.4]} 27. Ra3 {[%clk 0:00:51.9]} 27... c6 {[%clk
0:01:13]} 28. Bc5 {[%clk 0:00:46.6]} 28... Nc8 {[%clk 0:00:45.2]} 29. Rc3 {[%clk
0:00:39.2]} 29... Rd2+ {[%clk 0:00:42.7]} 30. Kg3 {[%clk 0:00:35.4]} 30... Ke6
{[%clk 0:00:39.5]} 31. Bb4 {[%clk 0:00:31.5]} 31... Kd7 {[%clk 0:00:30.3]} 32.
Rxc6 {[%clk 0:00:22]} 32... Rd4 {[%clk 0:00:13.9]} 33. c3 {[%clk 0:00:20.5]}
33... Rd2 {[%clk 0:00:06.9]} 34. Ra6 {[%clk 0:00:19.8]} 34... Re2 {[%clk
0:00:06.9]} 35. Bc5 {[%clk 0:00:18.7]} 35... Kc7 {[%clk 0:00:07.4]} 36. Ra4
{[%clk 0:00:15.3]} 36... Kb7 {[%clk 0:00:07]} 37. Bd4 {[%clk 0:00:14.5]} 37...
a6 {[%clk 0:00:07.3]} 38. Rb4+ {[%clk 0:00:14.2]} 38... Kc6 {[%clk 0:00:07.7]}
39. Rc4+ {[%clk 0:00:14.2]} 39... Kd7 {[%clk 0:00:08]} 40. Ra4 {[%clk
0:00:12.7]} 40... Re6 {[%clk 0:00:08.6]} 41. Kf4 {[%clk 0:00:11.5]} 41... Ne7
{[%clk 0:00:08.8]} 42. g4 {[%clk 0:00:11.1]} 42... Nd5+ {[%clk 0:00:09.1]} 43.
Kg3 {[%clk 0:00:10.2]} 43... Nc7 {[%clk 0:00:10]} 44. Rb4 {[%clk 0:00:08]} 44...
Re2 {[%clk 0:00:09.8]} 45. a4 {[%clk 0:00:06.5]} 45... g5 {[%clk 0:00:09.8]} 46.
Rb7 {[%clk 0:00:05.5]} 46... Kc6 {[%clk 0:00:09.9]} 47. Rb6+ {[%clk 0:00:05.5]}
47... Kd7 {[%clk 0:00:10.4]} 48. Rb7 {[%clk 0:00:05.7]} 48... Kc8 {[%clk
0:00:10.9]} 49. Rb6 {[%clk 0:00:05.1]} 49... Nd5 {[%clk 0:00:11.2]} 50. Rd6
{[%clk 0:00:03.9]} 50... Nf4 {[%clk 0:00:11.3]} 51. Bf2 {[%clk 0:00:02.3]} 51...
Rc2 {[%clk 0:00:11.2]} 52. Rxa6 {[%clk 0:00:01.2]} 52... Rxc3 {[%clk 0:00:11]}
0-1

[Event "*** SCC Grand Prix: Titled Tuesday Blitz"]
[Site "Chess.com"]
[Date "2020.09.08"]
[Round "1"]
[White "Emp3rador"]
[Black "BillieKimbah"]
[Result "1-0"]
[WhiteElo "2469"]
[BlackElo "2905"]
[TimeControl "180+1"]
[EndTime "10:08:16 PDT"]
[Termination "Emp3rador won by resignation"]

1. e4 {[%clk 0:03:00.9]} 1... d5 {[%clk 0:02:46]} 2. exd5 {[%clk 0:02:59.9]}
2... Nf6 {[%clk 0:02:46]} 3. d4 {[%clk 0:02:58.3]} 3... Bg4 {[%clk 0:02:44.8]}
4. Nf3 {[%clk 0:02:52.2]} 4... Qxd5 {[%clk 0:02:42.3]} 5. Nc3 {[%clk 0:02:51.8]}
5... Qe6+ {[%clk 0:02:19.7]} 6. Be3 {[%clk 0:02:42]} 6... c6 {[%clk 0:02:12]} 7.
h3 {[%clk 0:02:39.9]} 7... Bh5 {[%clk 0:02:04.6]} 8. g4 {[%clk 0:02:37]} 8...
Bg6 {[%clk 0:02:04.5]} 9. Ne5 {[%clk 0:02:36.2]} 9... Nbd7 {[%clk 0:01:53.1]}
10. Bc4 {[%clk 0:02:30]} 10... Qd6 {[%clk 0:01:52]} 11. Nxg6 {[%clk 0:01:36]}
11... hxg6 {[%clk 0:01:52.9]} 12. Qf3 {[%clk 0:01:35.2]} 12... e6 {[%clk
0:01:45.3]} 13. O-O-O {[%clk 0:01:33.7]} 13... Be7 {[%clk 0:01:41.4]} 14. Bf4
{[%clk 0:01:13.4]} 14... Qb4 {[%clk 0:01:40.3]} 15. Bb3 {[%clk 0:01:11]} 15...
a5 {[%clk 0:01:37.2]} 16. a3 {[%clk 0:01:08.9]} 16... Qb6 {[%clk 0:01:37.2]} 17.
Ne4 {[%clk 0:00:54]} 17... a4 {[%clk 0:01:31.8]} 18. Ba2 {[%clk 0:00:50.5]}
18... Nxe4 {[%clk 0:01:29.3]} 19. Qxe4 {[%clk 0:00:50.5]} 19... Nf6 {[%clk
0:01:30]} 20. Qe5 {[%clk 0:00:50.3]} 20... Rd8 {[%clk 0:01:16.7]} 21. g5 {[%clk
0:00:46.3]} 21... Bd6 {[%clk 0:01:09.8]} 22. Qe3 {[%clk 0:00:31.3]} 22... Bxf4
{[%clk 0:01:09.4]} 23. Qxf4 {[%clk 0:00:30.7]} 23... Nh5 {[%clk 0:01:06.3]} 24.
Qe5 {[%clk 0:00:28.1]} 24... O-O {[%clk 0:01:05.2]} 25. Rhe1 {[%clk 0:00:27]}
25... Rd7 {[%clk 0:00:58.5]} 26. Re4 {[%clk 0:00:20.4]} 26... Rfd8 {[%clk
0:00:56.9]} 27. c3 {[%clk 0:00:12.3]} 27... Kh7 {[%clk 0:00:50.9]} 28. Rd3
{[%clk 0:00:10]} 28... c5 {[%clk 0:00:44.4]} 29. Rh4 {[%clk 0:00:09.8]} 29...
cxd4 {[%clk 0:00:40.1]} 30. Rdxd4 {[%clk 0:00:09.7]} 30... Rxd4 {[%clk
0:00:30.1]} 31. Rxd4 {[%clk 0:00:09.5]} 31... Rxd4 {[%clk 0:00:30.1]} 32. cxd4
{[%clk 0:00:09.9]} 32... Qc6+ {[%clk 0:00:28.1]} 33. Kd2 {[%clk 0:00:09.4]}
33... Qf3 {[%clk 0:00:28]} 34. Qe3 {[%clk 0:00:08.4]} 34... Qf5 {[%clk
0:00:27.1]} 35. Bc4 {[%clk 0:00:07.8]} 35... Nf4 {[%clk 0:00:26.6]} 36. Bd3
{[%clk 0:00:06.8]} 36... Qxg5 {[%clk 0:00:23.2]} 37. Bc2 {[%clk 0:00:07.1]}
37... Qh4 {[%clk 0:00:21.9]} 38. Bxa4 {[%clk 0:00:07.2]} 38... Nxh3 {[%clk
0:00:21.8]} 39. Bd1 {[%clk 0:00:06.6]} 39... Nxf2 {[%clk 0:00:21.2]} 40. Bf3
{[%clk 0:00:06.6]} 40... f5 {[%clk 0:00:16.5]} 41. Bxb7 {[%clk 0:00:06.1]} 41...
f4 {[%clk 0:00:14.7]} 42. Qe2 {[%clk 0:00:05.5]} 42... Ng4 {[%clk 0:00:12.6]}
43. Bf3 {[%clk 0:00:05.5]} 43... Ne3 {[%clk 0:00:11.3]} 44. a4 {[%clk
0:00:05.3]} 44... Qf6 {[%clk 0:00:11.1]} 45. Kd3 {[%clk 0:00:04.1]} 45... Qf5+
{[%clk 0:00:10.8]} 46. Be4 {[%clk 0:00:04.6]} 46... Qh3 {[%clk 0:00:08]} 47. Qf3
{[%clk 0:00:04.3]} 47... Qh2 {[%clk 0:00:06.4]} 48. Qh1 {[%clk 0:00:04.4]} 48...
Qxh1 {[%clk 0:00:03.6]} 49. Bxh1 {[%clk 0:00:05.3]} 49... Nf5 {[%clk 0:00:03.6]}
50. a5 {[%clk 0:00:05.4]} 50... Nd6 {[%clk 0:00:04.1]} 51. a6 {[%clk 0:00:05.5]}
51... Nc8 {[%clk 0:00:04.8]} 52. b4 {[%clk 0:00:05.2]} 52... Kg8 {[%clk
0:00:03.2]} 53. b5 {[%clk 0:00:05.2]} 53... Kf7 {[%clk 0:00:03.6]} 54. Bb7
{[%clk 0:00:05]} 54... Na7 {[%clk 0:00:03.3]} 55. b6 {[%clk 0:00:05.3]} 55...
Nb5 {[%clk 0:00:03.6]} 56. a7 {[%clk 0:00:05.7]} 1-0

[Event "*** SCC Grand Prix: Titled Tuesday Blitz"]
[Site "Chess.com"]
[Date "2020.09.08"]
[Round "1"]
[White "Parhamov"]
[Black "jhonnyuribe"]
[Result "0-1"]
[WhiteElo "2990"]
[BlackElo "2482"]
[TimeControl "180+1"]
[EndTime "10:08:17 PDT"]
[Termination "jhonnyuribe won on time"]

1. e4 {[%clk 0:03:00.9]} 1... c6 {[%clk 0:03:00.9]} 2. d4 {[%clk 0:03:00.2]}
2... d5 {[%clk 0:03:01.1]} 3. Nc3 {[%clk 0:03:00.9]} 3... dxe4 {[%clk
0:02:52.7]} 4. Nxe4 {[%clk 0:03:01.8]} 4... Nf6 {[%clk 0:02:52.7]} 5. Nxf6+
{[%clk 0:02:50.8]} 5... exf6 {[%clk 0:02:53.6]} 6. c3 {[%clk 0:02:49.1]} 6...
Bd6 {[%clk 0:02:53.3]} 7. Bd3 {[%clk 0:02:48.7]} 7... O-O {[%clk 0:02:53.7]} 8.
Qc2 {[%clk 0:02:48.8]} 8... Re8+ {[%clk 0:02:52.7]} 9. Ne2 {[%clk 0:02:48.6]}
9... g6 {[%clk 0:02:52.8]} 10. h4 {[%clk 0:02:44]} 10... Bg4 {[%clk 0:02:49.2]}
11. f3 {[%clk 0:02:35.5]} 11... Be6 {[%clk 0:02:45.1]} 12. h5 {[%clk 0:02:35.8]}
12... f5 {[%clk 0:02:41.7]} 13. hxg6 {[%clk 0:02:22.9]} 13... hxg6 {[%clk
0:02:40.6]} 14. Bh6 {[%clk 0:02:14.3]} 14... Nd7 {[%clk 0:02:38.7]} 15. Qd2
{[%clk 0:02:13.6]} 15... Nb6 {[%clk 0:02:32.5]} 16. Bg5 {[%clk 0:02:07.4]} 16...
f6 {[%clk 0:02:29]} 17. Bf4 {[%clk 0:01:38]} 17... Nc4 {[%clk 0:02:23.3]} 18.
Qc1 {[%clk 0:01:37.8]} 18... g5 {[%clk 0:02:11.4]} 19. Bxd6 {[%clk 0:01:37.2]}
19... Qxd6 {[%clk 0:02:09.2]} 20. b3 {[%clk 0:01:33.2]} 20... Nb6 {[%clk
0:02:03.2]} 21. Kf2 {[%clk 0:01:32.2]} 21... Nd5 {[%clk 0:01:59.3]} 22. Qd2
{[%clk 0:01:20.6]} 22... Kg7 {[%clk 0:01:57.1]} 23. Rae1 {[%clk 0:01:03.5]}
23... Rh8 {[%clk 0:01:54.9]} 24. Ng3 {[%clk 0:01:02.7]} 24... f4 {[%clk
0:01:36.5]} 25. Ne4 {[%clk 0:00:56.9]} 25... Qe7 {[%clk 0:01:07.7]} 26. Nc5
{[%clk 0:00:35.3]} 26... Ne3 {[%clk 0:01:06.2]} 27. Rxh8 {[%clk 0:00:34.9]}
27... Rxh8 {[%clk 0:01:05]} 28. Rxe3 {[%clk 0:00:35.2]} 28... fxe3+ {[%clk
0:01:04.1]} 29. Qxe3 {[%clk 0:00:36.1]} 29... Re8 {[%clk 0:01:02.8]} 30. Qe4
{[%clk 0:00:35.6]} 30... f5 {[%clk 0:01:00.9]} 31. Qe5+ {[%clk 0:00:20.5]} 31...
Qf6 {[%clk 0:01:00.5]} 32. Qxf6+ {[%clk 0:00:17.6]} 32... Kxf6 {[%clk 0:01:00]}
33. Nxb7 {[%clk 0:00:18.5]} 33... f4 {[%clk 0:00:53.4]} 34. Nc5 {[%clk
0:00:18.3]} 34... Bf5 {[%clk 0:00:49.8]} 35. Be4 {[%clk 0:00:16.9]} 35... Bxe4
{[%clk 0:00:45.7]} 36. Nxe4+ {[%clk 0:00:17.1]} 36... Kg6 {[%clk 0:00:44.1]} 37.
Ke2 {[%clk 0:00:17.2]} 37... Rh8 {[%clk 0:00:41.2]} 38. c4 {[%clk 0:00:17.2]}
38... Rh1 {[%clk 0:00:39.2]} 39. d5 {[%clk 0:00:13.5]} 39... cxd5 {[%clk
0:00:36]} 40. cxd5 {[%clk 0:00:14.4]} 40... Ra1 {[%clk 0:00:35.3]} 41. a4 {[%clk
0:00:14.2]} 41... Ra2+ {[%clk 0:00:31]} 42. Kf1 {[%clk 0:00:13.8]} 42... Kf5
{[%clk 0:00:28.7]} 43. d6 {[%clk 0:00:13.7]} 43... Ke6 {[%clk 0:00:28.4]} 44. b4
{[%clk 0:00:13.6]} 44... Rb2 {[%clk 0:00:24.7]} 45. b5 {[%clk 0:00:13.4]} 45...
Kd7 {[%clk 0:00:21.6]} 46. Kg1 {[%clk 0:00:12]} 46... Rb4 {[%clk 0:00:21]} 47.
Kh2 {[%clk 0:00:12.3]} 47... g4 {[%clk 0:00:19.2]} 48. Nf6+ {[%clk 0:00:06.1]}
48... Kxd6 {[%clk 0:00:19.5]} 49. fxg4 {[%clk 0:00:05.1]} 49... Ke6 {[%clk
0:00:18.1]} 50. g5 {[%clk 0:00:05.1]} 50... Rxa4 {[%clk 0:00:17]} 51. Kh3 {[%clk
0:00:05.6]} 51... Kf5 {[%clk 0:00:17.2]} 52. Nd5 {[%clk 0:00:05.8]} 52... Ra3+
{[%clk 0:00:16]} 53. Kh2 {[%clk 0:00:05.1]} 53... Kxg5 {[%clk 0:00:16.3]} 54. b6
{[%clk 0:00:05.6]} 54... a5 {[%clk 0:00:14.4]} 55. Ne7 {[%clk 0:00:02.8]} 55...
Rb3 {[%clk 0:00:13.8]} 56. Nc6 {[%clk 0:00:03.1]} 56... a4 {[%clk 0:00:13.9]}
57. Nd4 {[%clk 0:00:03.5]} 57... Rxb6 {[%clk 0:00:13.9]} 0-1

[Event "*** SCC Grand Prix: Titled Tuesday Blitz"]
[Site "Chess.com"]
[Date "2020.09.08"]
[Round "1"]
[White "evgenyermolaev"]
[Black "Yaacovn"]
[Result "0-1"]
[WhiteElo "2449"]
[BlackElo "2910"]
[TimeControl "180+1"]
[EndTime "10:08:21 PDT"]
[Termination "Yaacovn won by checkmate"]

1. d4 {[%clk 0:02:53.9]} 1... Nf6 {[%clk 0:02:39.6]} 2. Nc3 {[%clk 0:02:52]}
2... d5 {[%clk 0:02:20.3]} 3. Bf4 {[%clk 0:02:49.6]} 3... e6 {[%clk 0:02:09.2]}
4. Nb5 {[%clk 0:02:46.5]} 4... Na6 {[%clk 0:02:06.5]} 5. e3 {[%clk 0:02:46.2]}
5... Bd7 {[%clk 0:02:05.6]} 6. a4 {[%clk 0:02:38.6]} 6... Be7 {[%clk 0:02:03.7]}
7. Nf3 {[%clk 0:02:36.9]} 7... O-O {[%clk 0:02:03.2]} 8. Be2 {[%clk 0:02:21.9]}
8... c6 {[%clk 0:01:54.5]} 9. Nc3 {[%clk 0:02:02.1]} 9... Nb4 {[%clk 0:01:28.4]}
10. a5 {[%clk 0:01:45.9]} 10... c5 {[%clk 0:01:25.2]} 11. O-O {[%clk 0:01:37.6]}
11... a6 {[%clk 0:01:24.2]} 12. Na4 {[%clk 0:01:10.6]} 12... Bxa4 {[%clk
0:01:21]} 13. Rxa4 {[%clk 0:01:09.9]} 13... Nc6 {[%clk 0:01:17.3]} 14. Ne5
{[%clk 0:00:55.5]} 14... Rc8 {[%clk 0:01:04.5]} 15. Nxc6 {[%clk 0:00:50]} 15...
Rxc6 {[%clk 0:01:04.3]} 16. c3 {[%clk 0:00:50.5]} 16... h6 {[%clk 0:01:02.9]}
17. Bd3 {[%clk 0:00:44.3]} 17... Bd6 {[%clk 0:01:00.4]} 18. dxc5 {[%clk
0:00:42.8]} 18... Bxf4 {[%clk 0:00:59.3]} 19. Rxf4 {[%clk 0:00:42.3]} 19... Rxc5
{[%clk 0:00:59.2]} 20. Bb1 {[%clk 0:00:32.8]} 20... Rxa5 {[%clk 0:00:54]} 21.
Qd3 {[%clk 0:00:32.6]} 21... g6 {[%clk 0:00:49]} 22. h4 {[%clk 0:00:32]} 22...
h5 {[%clk 0:00:47.3]} 23. Rd1 {[%clk 0:00:23.6]} 23... Qe7 {[%clk 0:00:43.8]}
24. c4 {[%clk 0:00:22.2]} 24... Ra1 {[%clk 0:00:41.3]} 25. b3 {[%clk 0:00:19]}
25... e5 {[%clk 0:00:37.7]} 26. Rxf6 {[%clk 0:00:11.7]} 26... Qxf6 {[%clk
0:00:37.7]} 27. cxd5 {[%clk 0:00:12.2]} 27... Qxh4 {[%clk 0:00:33.7]} 28. d6
{[%clk 0:00:10.4]} 28... Rd8 {[%clk 0:00:22.2]} 29. Qd5 {[%clk 0:00:04.5]} 29...
Qf6 {[%clk 0:00:19.8]} 30. Qxb7 {[%clk 0:00:03]} 30... Kg7 {[%clk 0:00:17.9]}
31. Qc7 {[%clk 0:00:03]} 31... h4 {[%clk 0:00:16.2]} 32. d7 {[%clk 0:00:02.3]}
32... Qe7 {[%clk 0:00:14.8]} 33. Kh2 {[%clk 0:00:01.2]} 33... a5 {[%clk
0:00:14.8]} 34. Kg1 {[%clk 0:00:01.6]} 34... a4 {[%clk 0:00:14.6]} 35. bxa4
{[%clk 0:00:02.5]} 35... Rxa4 {[%clk 0:00:15.1]} 36. Kh2 {[%clk 0:00:02.9]}
36... Ra1 {[%clk 0:00:15.3]} 37. Rc1 {[%clk 0:00:02.6]} 37... Rxd7 {[%clk
0:00:12.8]} 38. Qc3 {[%clk 0:00:03.2]} 38... Ra3 {[%clk 0:00:12.3]} 39. Qc4
{[%clk 0:00:02.9]} 39... Ra8 {[%clk 0:00:12.3]} 40. f4 {[%clk 0:00:02.9]} 40...
exf4 {[%clk 0:00:12.1]} 41. exf4 {[%clk 0:00:03.8]} 41... Qf6 {[%clk 0:00:11.7]}
42. Be4 {[%clk 0:00:03.3]} 42... Rad8 {[%clk 0:00:11.6]} 43. Bf3 {[%clk
0:00:03.1]} 43... Rd4 {[%clk 0:00:11.5]} 44. Qc3 {[%clk 0:00:03.1]} 44... Qxf4+
{[%clk 0:00:11.6]} 45. Kh1 {[%clk 0:00:04]} 45... Qf6 {[%clk 0:00:10.5]} 46. Rf1
{[%clk 0:00:04.2]} 46... Rf4 {[%clk 0:00:08.9]} 47. Qc7 {[%clk 0:00:03.9]} 47...
Rd3 {[%clk 0:00:07.6]} 48. Qc1 {[%clk 0:00:04.3]} 48... Rd5 {[%clk 0:00:06.4]}
49. Qd2 {[%clk 0:00:03.2]} 49... Rg5 {[%clk 0:00:06.5]} 50. Qe2 {[%clk 0:00:03]}
50... Rg3 {[%clk 0:00:06.6]} 51. Qe1 {[%clk 0:00:02.2]} 51... Rg5 {[%clk
0:00:05]} 52. Kh2 {[%clk 0:00:02.4]} 52... Re5 {[%clk 0:00:05.1]} 53. Qd2 {[%clk
0:00:02.4]} 53... Ref5 {[%clk 0:00:05.4]} 54. Qe1 {[%clk 0:00:02.4]} 54... Qg5
{[%clk 0:00:05.3]} 55. Qe2 {[%clk 0:00:02]} 55... Qf6 {[%clk 0:00:05.1]} 56. Qe1
{[%clk 0:00:01.9]} 56... h3 {[%clk 0:00:06]} 57. Kxh3 {[%clk 0:00:01.9]} 57...
Rh5+ {[%clk 0:00:05.1]} 58. Bxh5 {[%clk 0:00:01.8]} 58... Rxf1 {[%clk
0:00:05.1]} 59. Qg3 {[%clk 0:00:02]} 59... Rh1+ {[%clk 0:00:05.1]} 60. Kg4
{[%clk 0:00:02.1]} 60... gxh5# {[%clk 0:00:05.5]} 0-1

[Event "*** SCC Grand Prix: Titled Tuesday Blitz"]
[Site "Chess.com"]
[Date "2020.09.08"]
[Round "1"]
[White "FontVella8"]
[Black "ViktoriyaTarasova"]
[Result "0-1"]
[WhiteElo "2526"]
[BlackElo "2214"]
[TimeControl "180+1"]
[EndTime "10:08:30 PDT"]
[Termination "ViktoriyaTarasova won by resignation"]

1. e4 {[%clk 0:03:00.9]} 1... c5 {[%clk 0:02:58.7]} 2. Nf3 {[%clk 0:02:59]} 2...
d6 {[%clk 0:02:59]} 3. d4 {[%clk 0:02:59.4]} 3... cxd4 {[%clk 0:02:59.2]} 4.
Qxd4 {[%clk 0:03:00.3]} 4... Nf6 {[%clk 0:02:56.1]} 5. Be2 {[%clk 0:03:00]} 5...
e6 {[%clk 0:02:54]} 6. O-O {[%clk 0:02:59.6]} 6... Be7 {[%clk 0:02:53.5]} 7. Rd1
{[%clk 0:02:59.6]} 7... Qc7 {[%clk 0:02:52.7]} 8. h3 {[%clk 0:02:58.9]} 8... O-O
{[%clk 0:02:52.3]} 9. c4 {[%clk 0:02:58.2]} 9... Nc6 {[%clk 0:02:52.4]} 10. Qe3
{[%clk 0:02:57.9]} 10... Ne5 {[%clk 0:02:47]} 11. b3 {[%clk 0:02:53.3]} 11... b6
{[%clk 0:02:43]} 12. Bb2 {[%clk 0:02:53.5]} 12... Bb7 {[%clk 0:02:43.4]} 13. Nc3
{[%clk 0:02:50.7]} 13... a6 {[%clk 0:02:42.7]} 14. Rac1 {[%clk 0:02:47.2]} 14...
Bc6 {[%clk 0:02:40.2]} 15. Bf1 {[%clk 0:02:42.5]} 15... Qb7 {[%clk 0:02:38.6]}
16. Nd2 {[%clk 0:02:40.4]} 16... Ng6 {[%clk 0:02:28]} 17. Bd3 {[%clk 0:02:38.3]}
17... Rfe8 {[%clk 0:02:12.1]} 18. Bb1 {[%clk 0:02:37.6]} 18... d5 {[%clk
0:02:08.4]} 19. e5 {[%clk 0:02:01.9]} 19... Bc5 {[%clk 0:02:05.7]} 20. Qe1
{[%clk 0:02:00.4]} 20... Nh5 {[%clk 0:01:49.2]} 21. cxd5 {[%clk 0:01:49.8]}
21... exd5 {[%clk 0:01:49.1]} 22. Nf3 {[%clk 0:01:44.5]} 22... d4 {[%clk
0:01:40.3]} 23. Ne4 {[%clk 0:01:16.2]} 23... Nxe5 {[%clk 0:01:20.5]} 24. Nfg5
{[%clk 0:01:16]} 24... Ng6 {[%clk 0:01:04.5]} 25. b4 {[%clk 0:00:32]} 25... Bf8
{[%clk 0:00:53.8]} 26. Rxd4 {[%clk 0:00:31.3]} 26... Nhf4 {[%clk 0:00:22.9]} 27.
Qd2 {[%clk 0:00:23.1]} 27... h6 {[%clk 0:00:21.3]} 28. Rxc6 {[%clk 0:00:16.8]}
28... Qxc6 {[%clk 0:00:20.6]} 29. Nf3 {[%clk 0:00:15.5]} 29... Ne6 {[%clk
0:00:19.2]} 30. Rd7 {[%clk 0:00:10.9]} 30... Rad8 {[%clk 0:00:19.2]} 31. Rxd8
{[%clk 0:00:09.1]} 31... Rxd8 {[%clk 0:00:19.9]} 32. Qe1 {[%clk 0:00:07.9]}
32... Qb5 {[%clk 0:00:17.1]} 33. a3 {[%clk 0:00:07]} 33... Nef4 {[%clk
0:00:16.9]} 34. Ba2 {[%clk 0:00:05.5]} 34... Qd7 {[%clk 0:00:16.1]} 35. h4
{[%clk 0:00:04.3]} 35... Nd3 {[%clk 0:00:16.1]} 36. Qc3 {[%clk 0:00:03.7]} 36...
Nxb2 {[%clk 0:00:16.8]} 37. Qxb2 {[%clk 0:00:04.2]} 37... Nf4 {[%clk 0:00:16]}
38. Ne5 {[%clk 0:00:03]} 38... Qd1+ {[%clk 0:00:14.2]} 39. Kh2 {[%clk
0:00:03.3]} 39... Ne6 {[%clk 0:00:14.5]} 40. Bxe6 {[%clk 0:00:03.4]} 40... fxe6
{[%clk 0:00:14]} 41. Qa2 {[%clk 0:00:03.5]} 41... Qd5 {[%clk 0:00:13]} 42. Qxd5
{[%clk 0:00:03.7]} 42... Rxd5 {[%clk 0:00:12.9]} 43. Nc6 {[%clk 0:00:02.8]}
43... Rd3 {[%clk 0:00:10.7]} 44. a4 {[%clk 0:00:02.8]} 44... Ra3 {[%clk
0:00:09.8]} 45. a5 {[%clk 0:00:03]} 45... bxa5 {[%clk 0:00:10]} 46. bxa5 {[%clk
0:00:03.8]} 46... Kf7 {[%clk 0:00:09.3]} 47. Ng3 {[%clk 0:00:02.9]} 47... Ke8
{[%clk 0:00:09]} 48. Ne2 {[%clk 0:00:01.8]} 48... Kd7 {[%clk 0:00:08.7]} 49.
Ned4 {[%clk 0:00:02.5]} 49... Bc5 {[%clk 0:00:08.4]} 50. Ne5+ {[%clk 0:00:01.9]}
50... Kd6 {[%clk 0:00:06.9]} 51. Ndc6 {[%clk 0:00:02.5]} 51... Kc7 {[%clk
0:00:05.5]} 52. g3 {[%clk 0:00:01.8]} 52... Bd6 {[%clk 0:00:05.2]} 53. Kg2
{[%clk 0:00:02.1]} 53... Bxe5 {[%clk 0:00:05.6]} 54. Nxe5 {[%clk 0:00:02.6]}
54... Rxa5 {[%clk 0:00:06.2]} 55. Nc4 {[%clk 0:00:03.5]} 55... Rc5 {[%clk
0:00:06.4]} 56. Na3 {[%clk 0:00:03.4]} 56... a5 {[%clk 0:00:06.7]} 57. Kf1
{[%clk 0:00:04]} 57... Kc6 {[%clk 0:00:07.2]} 58. Ke2 {[%clk 0:00:04.5]} 58...
a4 {[%clk 0:00:07.7]} 59. Kd3 {[%clk 0:00:04.5]} 59... Rc1 {[%clk 0:00:08.1]}
60. Nc4 {[%clk 0:00:04.1]} 60... Kc5 {[%clk 0:00:08.2]} 61. Nd2 {[%clk 0:00:04]}
61... Kb4 {[%clk 0:00:08.1]} 62. f4 {[%clk 0:00:03.6]} 62... a3 {[%clk
0:00:08.3]} 63. Nf3 {[%clk 0:00:03.4]} 63... a2 {[%clk 0:00:08]} 64. Kd2 {[%clk
0:00:04.3]} 64... a1=Q {[%clk 0:00:07.4]} 0-1